Cogmind - Beta 17 @@@ ROGUE MODE // 2026.08.13 @ 17:53:15 Player: Blaj Result: Destroyed by R7-RKW(R) with Subdweller Laser Performance ------------- Evolutions (0) 0 Regions Visited (2) 400 Robots Destroyed (34) 170 Value Destroyed (860) 860 Prototype IDs (21) 420 Alien Tech Used (0) 0 Bonus (0) 0 TOTAL SCORE: 1850 Bonus ------- None Cogmind --------- Core Integrity 0/250 Matter 300/300 Energy 300/300 System Corruption 0% Temperature Cool (6) Movement Treading (240) Ox1 Location -10/Subcaves Parts ------- > --- POWER (1) -------- Enhanced Nuclear Core (fused) > --- PROPULSION (2) --- Light Treads > --- UTILITY (2) ------ Large Storage Unit Self-contained Transmogrifier > --- WEAPON (2) ------- Maul (fused) > --- INVENTORY (15) --- High-capacity Storage Unit Structural Scanner Seismic Detector Scrap Shield Powered Cannon Battle Cannon Battle Cannon Grenade Launcher Grenade Launcher Dirty Datajack (20) Mining Laser Multitool Peak State ------------ > --- POWER ------------ Enhanced Nuclear Core > --- PROPULSION ------- Spiked Treads Advanced Treads > --- UTILITY ---------- Large Storage Unit Self-contained Transmogrifier > --- WEAPON ----------- Flail Maul > --- INVENTORY -------- Light Treads High-capacity Storage Unit Structural Scanner Seismic Detector Scrap Shield Powered Cannon Battle Cannon Battle Cannon Grenade Launcher Grenade Launcher Dirty Datajack Mining Laser Multitool [Rating: 27] Favorites ----------- Power Ion Engine Engine Ion Engine Power Core Micro Nuclear Core Propulsion Light Treads Treads Light Treads Leg Aluminum Leg Utility Large Storage Unit Device Self-contained Transmogrifier Storage Large Storage Unit Processor Signal Interpreter Protection Weapon Shielding Weapon Subdweller Beam Cannon Energy Gun Medium Laser Energy Cannon Subdweller Beam Cannon Ballistic Gun Assault Rifle Ballistic Cannon Light Cannon Launcher Grenade Launcher Special Weapon Multitool Impact Weapon Flail Build | -11 -10 -10 ------- Run | Yrd Mat Sub Slots Evolved . | . . . Power . | . . . Propulsion . | . . . Utility . | . . . Weapon . | . . . Parts Attached 28 | 1 13 14 Power 2 | . . 2 Engine 1 | . . 1 Core 1 | . . 1 Reactor . | . . . Propulsion 4 | . 3 1 Treads 4 | . 3 1 Leg . | . . . Wheel . | . . . Hover . | . . . Flight . | . . . Utility 8 | 1 4 3 Device 3 | 1 . 2 Storage 2 | . 2 . Processor 1 | . 1 . Hackware . | . . . Protection 2 | . 1 1 Artifact . | . . . Weapon 14 | . 6 8 Energy Gun 2 | . 1 1 Energy Cannon 4 | . 1 3 Ballistic Gun 1 | . 1 . Ballistic Cannon 2 | . 1 1 Launcher 3 | . 2 1 Special Weapon 2 | . . 2 Impact Weapon . | . . . Slashing Weapon . | . . . Piercing Weapon . | . . . Special Melee Weapon . | . . . Unidentified Prototypes 1 | . . 1 Parts Lost 4 | . . 4 Power 1 | . . 1 Propulsion 2 | . . 2 Utility . | . . . Weapon 1 | . . 1 Highest Loss Streak 3 | . . 3 To Critical Strikes . | . . . Average Backups 11 | 6 12 11 Power 1 | 1 2 . Propulsion 1 | 4 2 1 Utility 3 | . 2 3 Weapon 4 | 1 4 4 Tool/Special . | . . . Unused Backups 16 | 6 4 6 Power 3 | 1 . 2 Propulsion 4 | 2 2 . Utility 1 | 1 . . Weapon 7 | 2 2 3 Tool/Special 1 | . . 1 Average Slot Usage (%) 97 | . 99 97 Engine 9 | . 14 7 Core 4 | . . 6 Treads 26 | . 23 27 Leg 1 | . 4 . Device 12 | . 11 13 Storage 12 | . 14 12 Protection 1 | . 2 1 Energy Gun 5 | . 9 3 Energy Cannon 10 | . 10 10 Ballistic Cannon 3 | . 4 3 Launcher 1 | . 1 1 Impact Weapon 5 | . . 8 Peak Build Rating 27 | 7 8 27 Average Rating 14 | 6 7 18 On Entrance 7 | 6 7 8 Avg Prop Armor Cover (%) . | . . . Naked Turns . | . . . Heaviest Build 52 | 15 52 39 Greatest Support 42 | 20 40 42 Greatest Overweight (x) 1 | . 1 1 Average Overweight (x) . | . . . Largest Inventory Capacity 20 | 8 20 15 Average Capacity 13 | 8 13 13 Most Carried 15 | 6 15 15 Average Carried 12 | 6 12 12 Final Capacity 15 | 8 15 15 Final Carried 15 | 6 15 14 Transmogrified Parts 10 | . . 10 Integrity Recovered 140 | . . 140 Class Distribution -------------------- 93% | Mutant 5% | Scavenger-Mutant Dominant Class ---------------- Mutant | -10/Materials Mutant | -10/Subcaves Resources | -11 -10 -10 ----------- Run | Yrd Mat Sub Matter Collected 849 | 200 265 384 Remotely . | . . . Salvage Created 1123 | 131 348 644 Parts 84 | 9 32 43 Haulers Intercepted 2 | . 2 . Recyclers Shooed 1 | . 1 . Parts Field Recycled . | . . . Retrieved Matter . | . . . Parts Self-Destructed 13 | . . 13 Prevented . | . . . Parts Restored . | . . . Kills | -11 -10 -10 ------- Run | Yrd Mat Sub Combat Hostiles Destroyed 22 | . 8 14 Melee 4 | . . 4 Guns 3 | . 3 . Cannons 8 | . 1 7 AOE 3 | . 3 . Classes Destroyed 10 | 2 5 3 Builder 4 | . 4 . Tunneler 4 | 4 . . Hauler 2 | . 2 . Recycler 1 | 1 . . Watcher 1 | . 1 . Swarmer 3 | . 3 . Grunt 8 | . 5 3 Sentry 1 | . . 1 Artisan 1 | . . 1 Subdweller 10 | . . 10 Best Kill Streak 6 | 3 6 3 Combat Bots Only 3 | . 3 3 Max Kills in Single Turn 2 | 1 2 1 Gunslinging . | . . . Exploded 1 | . 1 . Melee 1 | . . 1 Uniques/NPCs Destroyed . | . . . Combat | -11 -10 -10 -------- Run | Yrd Mat Sub Hostile Shots Fired 107 | . 37 70 Missed 28 | . 9 19 Hits 79 | . 28 51 Projectile 79 | . 28 51 Critical Strikes 3 | . 1 2 Damage Taken 1481 | . 312 1169 Core 270 | . 18 252 Absorbed by Shields . | . . . Redirected to Shielding 10 | . 10 . Regen/Repaired (Parts) 127 | . 127 . Core Remaining (%) 100 | 100 . . Volleys Fired 109 | 13 33 63 Largest 2 | 2 2 2 Hottest 160 | 100 110 160 Shots Fired 171 | 26 58 87 Gun 75 | 26 38 11 Cannon 77 | . 13 64 Launcher 8 | . 7 1 Special 11 | . . 11 Kinetic 24 | . 7 17 Thermal 132 | 26 44 62 Explosive 8 | . 7 1 Electromagnetic 7 | . . 7 Robot Hit Streak 26 | 8 18 26 Robot Miss Streak 4 | 4 2 1 Penetration Max . | . . . Secondary Targets . | . . . Shots Hit Robots 137 | 13 41 83 Core Hits 50 | 6 24 20 Critical Kills 1 | . . 1 Critical Parts Destroyed 3 | . . 3 Critical Strikes 14 | 2 2 10 Burn 4 | 2 2 . Blast 1 | . . 1 Smash 9 | . . 9 Melee Attacks 45 | . . 45 Impact 45 | . . 45 Slashing . | . . . Piercing . | . . . Sneak Attacks . | . . . Combat Hostiles . | . . . Follow-up Attacks 3 | . . 3 Damage Inflicted 2869 | 162 828 1879 Guns 582 | 162 378 42 Cannons 1085 | . 191 894 Explosions 257 | . 257 . Melee 905 | . . 905 Ramming 2 | . 2 . Kinetic 277 | . 64 213 Thermal 1386 | 162 505 719 Explosive 257 | . 257 . Electromagnetic 42 | . . 42 Impact 905 | . . 905 Slashing . | . . . Piercing . | . . . Highest Corruption . | . . . Average Corruption . | . . . Corruption Purged . | . . . Corruption Blocked . | . . . Overload Shots . | . . . Overflow Damage 221 | . 27 194 Projectiles . | . . . Explosions 27 | . 27 . Melee 194 | . . 194 Knockbacks 9 | . . 9 Impact 8 | . . 8 Kinetic 1 | . . 1 Secondary . | . . . Self-Inflicted Damage . | . . . Shots . | . . . Rammed 1 | . 1 . Targets Rammed 1 | . 1 . Kicked . | . . . Crushed . | . . . Highest Temperature 236 | 195 236 90 Average Temperature 55 | 80 61 16 Received Heat Transfer 378 | . 138 240 Siege Activations . | . . . Martial Activations . | . . . Shielding Activations . | . . . Robots Disrupted . | . . . Combat Hostiles . | . . . Robots Corrupted 3 | . . 3 Combat Hostiles 3 | . . 3 Parts Fried . | . . . Impact Corruptions 5 | . . 5 Robots Melted 1 | . 1 . Combat Hostiles 1 | . 1 . Parts Melted 7 | 5 2 . Heat Transferred 3381 | 629 1480 1272 Parts Sabotaged . | . . . Parts Stolen . | . . . Parts Stripped . | . . . Power Chain Reactions . | . . . Alert | -11 -10 -10 ------- Run | Yrd Mat Sub Maximum Alert Level . | . . . Low Security (%) 100 | 100 100 . Level 1 . | . . . Level 2 . | . . . Level 3 . | . . . Level 4 . | . . . Level 5 . | . . . High Security . | . . . Max Security . | . . . Peak Influence 90 | 10 90 . Initial 3 | . 3 . Average 23 | 3 25 . Influence Increases 425 | 25 310 90 Destroy 0b10 Robot/C 240 | . 160 80 Destroy 0b10 Robot/NC 60 | 25 35 . Destroy Leader 46 | . 36 10 Successful Hack 36 | . 36 . Destroy Structure 28 | . 28 . Partial Spotted 15 | . 15 . Influence Decreases 425 | 20 315 90 Entered New Map 2 | . 2 . Time Decay 387 | 20 313 54 Lost Part 30 | . . 30 Lost Ally 6 | . . 6 Squads Dispatched . | . . . Investigation . | . . . Extermination . | . . . Reinforcement . | . . . Assault . | . . . Garrison . | . . . Intercept . | . . . Searches Triggered . | . . . Construction Impeded . | . . . Haulers Reinforced . | . . . Active Scanning Responses . | . . . Cargo Convoy Interrupts . | . . . Stealth | -11 -10 -10 --------- Run | Yrd Mat Sub Distress Signals 1 | . 1 . Communications Jammed . | . . . Distress Signals . | . . . Times Spotted 30 | . 14 16 Peak Tracking Total 3 | . 3 3 Tactical Retreats 1 | . . 1 Traps | -11 -10 -10 ------- Run | Yrd Mat Sub Traps Triggered 1 | . . 1 Indirectly . | . . . Trap Hack Attempts . | . . . Triggered . | . . . Disarmed . | . . . Reprogrammed . | . . . Reused . | . . . Traps Extracted . | . . . Installed . | . . . Triggered . | . . . Machines | -11 -10 -10 ---------- Run | Yrd Mat Sub Machines Disabled 1 | . . 1 Max in Single Turn 1 | . . 1 Machines Repaired . | . . . Machines Dismantled . | . . . Machines Sabotaged . | . . . Overloaded Fab Kills . | . . . Hacking | -11 -10 -10 --------- Run | Yrd Mat Sub Machines Accessed 8 | . 7 1 Terminals 6 | . 6 . Fabricators . | . . . Repair Stations 1 | . 1 . Recycling Units . | . . . Scanalyzers . | . . . Garrison Access . | . . . Total Hacks 34 | . 25 9 Successful 26 | . 17 9 Failed 8 | . 8 . Catastrophic 1 | . 1 . Database Lockouts . | . . . Manual 9 | . 9 . Terminals 23 | . 23 . Fabricators . | . . . Repair Stations 2 | . 2 . Recycling Units . | . . . Scanalyzers . | . . . Garrison Access . | . . . Terminal Hacks 22 | . 13 9 Record 8 | . . 8 Part Schematic 1 | . 1 . Robot Analysis 2 | . 2 . Prototype ID Bank 2 | . 2 . Branch Access Points 1 | . 1 . Emergency Access Points 2 | . 2 . Locate Traps 2 | . 2 . Hauler Manifests 1 | . 1 . Registered Components 1 | . 1 . Zone Layout 1 | . 1 . Proto ID Catalog 1 | . . 1 Fabricator Hacks . | . . . Repair Station Hacks 2 | . 2 . Scan Component 1 | . 1 . Repair 1 | . 1 . Recycling Unit Hacks . | . . . Scanalyzer . | . . . Garrison Access Hacks . | . . . Unauthorized Hacks 2 | . 2 . Terminals 2 | . 2 . Assimilate 1 | . 1 . Operators 1 | . 1 . Fabricators . | . . . Repair Stations . | . . . Recycling Units . | . . . Scanalyzers . | . . . Garrison Access . | . . . Data Cores Recovered . | . . . Used . | . . . Hacking Detections 7 | . 7 . Full Trace Events . | . . . Feedback Events . | . . . Feedback Blocked . | . . . Robot Schematics Acquired . | . . . Robots Built . | . . . Authchips . | . . . Time . | . . . Total Robot Build Rating . | . . . Part Schematics Acquired 1 | . 1 . Parts Built . | . . . Authchips . | . . . Time . | . . . Total Part Build Rating . | . . . Part Studies Acquired . | . . . Parts Repaired 1 | . 1 . Time 26 | . 26 . Parts Recycled . | . . . Recycled Matter . | . . . Retrieved Matter . | . . . Retrieved Components . | . . . Parts Scanalyzed . | . . . Part Schematics Acquired . | . . . Parts Damaged . | . . . Bothacking | -11 -10 -10 ------------ Run | Yrd Mat Sub Used RIF Installer . | . . . Robots Hacked . | . . . Non-combat . | . . . Combat . | . . . Robot Hacks Applied . | . . . Relay Couplers Released . | . . . Fabnet Peak Effective % . | . . . Robots Rewired . | . . . Allies Hacked . | . . . Hacks Repelled . | . . . Allies | -11 -10 -10 -------- Run | Yrd Mat Sub Total Allies 1 | . 1 . Largest Group 1 | . 1 1 Highest-Rated Group 10 | . 10 10 Highest-Rated Ally 10 | . 10 10 Total Orders . | . . . Ally Attacks . | . . . Total Damage . | . . . Kills . | . . . Allies Corrupted . | . . . Allies Melted . | . . . Intel | -11 -10 -10 ------- Run | Yrd Mat Sub Active Infowar (turns) 1816 | 6 1021 789 Structural 741 | . . 741 Seismic 1207 | 6 1021 180 Robot Analysis Total 2 | . 2 . Derelict Logs Recovered 2 | . . 2 Drone Launches . | . . . Drone Recoveries . | . . . Exploration | -11 -10 -10 ------------- Run | Yrd Mat Sub Turns Passed 4146 | 96 1255 2795 Spaces Moved 1636 | 19 652 965 Core . | . . . Treads 1490 | . 525 965 Legs 146 | 19 127 . Wheels . | . . . Hover . | . . . Flight . | . . . Fastest Speed 120 | 120 120 152 Average Speed 159 | 120 160 159 Slowest Speed 240 | 120 240 240 Overloaded Moves . | . . . Propulsion Burnouts . | . . . Robots Hopped . | . . . Potential Cave-ins . | . . . Cave-ins Triggered . | . . . Exploration Rate (%) 49 | 2 91 55 Regions Visited 2 Branch Regions 1 Pre-discovered Areas 1 | . . 1 Known Exits Taken . | . . . Unknown Exits Taken 2 | 1 1 . Scrap Searched 6 | . . 6 Spaces Dug 3 | . . 3 Terrain Destroyed 55 | . 41 14 Melee 3 | . . 3 Projectile 2 | . . 2 AOE 50 | . 41 9 Terrain Rammed . | . . . Walls Destroyed . | . . . Machines Disabled . | . . . Actions | -11 -10 -10 --------- Run | Yrd Mat Sub Total 2910 | 65 796 2049 Wait 1008 | 33 71 904 Move 1634 | 18 651 965 Hop . | . . . Pick Up 30 | . 13 17 Fast Attach 13 | 1 3 9 Attach 9 | . 2 7 Detach 7 | . 3 4 Swap 22 | . 13 9 Drop 33 | . 6 27 Fire 109 | 13 33 63 Melee 38 | . . 38 Ram . | . . . Kick . | . . . Crush 1 | . 1 . Escape Stasis . | . . . Rewire . | . . . Trap . | . . . Miscellaneous 6 | . . 6 Route ------- -11/Scrapyard -10/Materials (discovered 4 exits: *Mat x2 / *Min / *Sub) -10/Subcaves (discovered 1 exit: [*Mat]) History --------- Turn | Location | Event 1 | -11/Scrapyard | Discovered new exit (range 3) 97 | -11/Scrapyard | Entered Materials 123 | -10/Materials | Identified exit to Mines 312 | -10/Materials | Build established: Mutant 778 | -10/Materials | Discovered new exit (range 16) 883 | -10/Materials | Identified exit to Materials 1207 | -10/Materials | Repaired Lgt. Treads 1272 | -10/Materials | Discovered exit to Materials (range 5) 1338 | -10/Materials | Discovered new exit (range 11) 1352 | -10/Materials | Entered Subcaves 1352 | -10/Subcaves | Accompanied by 1 ally 1353 | -10/Subcaves | Approached by a straggling Scientist 1379 | -10/Subcaves | Discovered new exit (range 13) 1398 | -10/Subcaves | Ambushed by angry Subdweller bent on revenge 1430 | -10/Subcaves | Learned Materials stockpile data 1817 | -10/Subcaves | Learned location of Zion (-7) 1817 | -10/Subcaves | Met a Zionite searching for "candidates" 2229 | -10/Subcaves | Shifting Twisted Machinery released Sub. Monowheel 2233 | -10/Subcaves | Shifting Twisted Machinery released Battle Rifle 2336 | -10/Subcaves | Visited 4L-MR0's lab 2406 | -10/Subcaves | Found Prototype Device 2406 | -10/Subcaves | Identified Sfc. Transmogrifier 2419 | -10/Subcaves | Found Powered Cannon 4066 | -10/Subcaves | Core integrity fell below 50% 4118 | -10/Subcaves | Lost 3 parts (2n1w) 4133 | -10/Subcaves | Core integrity fell below 20% 4147 | -10/Subcaves | Destroyed by R7-RKW(R) with Subdweller Laser Last Messages --------------- 04062_ 17-YXY(R) IFF system glitched. 04070_ Destroyed Sub. Power Source. 04070_ 17-YXY(R) system corrupted by crushing effect. 04070_ 17-YXY(R) misfires. 04071_ 17-YXY(R) system terminally corrupted. 04074_ R7-RKW(R) knocked back. 04082_ R7-RKW(R) suffers critical hit (Smash). 04082_ Flail follow-up attack on R7-RKW(R). 04083_ Adv. Treads destroyed. 04085_ Destroyed Disposable Heat Sink. 04085_ R7-RKW(R) system corrupted by crushing effect. 04087_ Flail destroyed. 04107_ Technician 1a destroyed. 04124_ R7-RKW(R) affixes Scrap Shield Fragment to Scrap Shield. 04132_ R7-RKW(R) misfires. 04140_ R7-RKW(R) suffers critical hit (Smash). 04143_ R7-RKW(R) knocked back. Map ----- +----------------------------------------------------+ | ?????????????????????????????????????????????????? | | ?????????????????????????????????????????????????? | | ?????????????????????????????????????????????????? | | ?????????????????????????????????????????????????? | | ?????????????????????????????????????????????????? | | ?????????????????????????????????????????????????? | | ?????????????????????????????????????????????????? | | ?????????????????????????????????????????????????? | | ?????????????????????????????????????????????????? | | ????????????????????????????????????? ???????????? | | ??????????????????????????????????# ##?????????? | | ?????????????????????????????????# ?????##?? | | ????????????????????????????????## ????# ? | | ???????????????????????????????? ?????# ? | | ???????????????????????????? ?? #?????# # | | ???????????????????????????? ?? #####??# | | ???????????????????????????? ???# ## ##??# | | ????????????????????????????? ??# ##??# | | ??????????????????????????????? ### #?## | | ???????????????? #####?????????# ### | | ???????????????? ""##???????## ### | | ????????????????# """"#####?### # # | | ???????????????## """" " ###= | | ???????????????"" " "" !% ### | | ???????????????"""""### / #### #? | | ??????????????????????##%@ # ##??#####? | | ???????????????????????# R ## #????????? | | ???????????????????????# ## # ####????????? | | ???????????????????????########### ##???????????? | | ?????????????????????????????????####????????????? | | ##########???????????????????????????????????????? | | #""""""!"#???????????????????????????????????????? | | "X"&!&"####????????????????????????????????????# | | = ]&&*%######????????????????????????????????????# | | & &[&+% =##????????????????????????????????????? | | ########! ##????????????????????????????????????# | | #########"*##????????????????????????????????????# | | #####"%%["##????????????????????????????????????? | | #* "##????????????????????????????????????? | | ## ###????????????????????????????????????? | | #" ##" "####????????????????????????????????????? | | #" "#########???????????????????????????????????? | | " ### ###???????????????????????????????????? | | ##########???????????????????????????? | | # ## #######?#####???????????????? | | ### !%= ### ##??????????????? | | # ##### =* ## #??????????????? | | ######### # ###### #??????????????? | | #####??############## ##????????????????? | | ????????#######?#### " * ##????????????????? | +----------------------------------------------------+ Best States ------------- Heat Dissipation 25 Energy Generation 17 Energy Capacity 300 Matter Stores 300 Matter Capacity 300 Sight Range 16 Terrain Scan Density 10 Armor Coverage 800 Weapon Shielding 33 Evasion (%) 55 Recoil Reduction 2 Item Schematics ----------------- Hcp. Storage Unit | -10/Materials | Hacked Robot Schematics ------------------ None Fabricated ------------ Nothing Repaired ---------- Lgt. Treads | 9% | -10/Materials Studied --------- None Alien Tech Used ----------------- None Achievements -------------- None Challenges ------------ None Game ------ Seed MasterGodMachine Manual? 0 Play Time 00:44:19 Cumulative 267.0 hours Start 2026.08.12 @ 17:02:16 End 2026.08.13 @ 17:53:15 Sessions 3 Manual Loads 0 Difficulty Rogue Special Mode None Game No. 72 Rogue 72 Adventurer 0 Explorer 0 Win Type - Total 10 Types 5/0/2/0/1/1/0/1/0/0 Lore% 65 Gallery% 71 Achievement% 53 Wizard Run 0 Options --------- Layout 2 ASCII 0 Keyboard 1 Movement Vi Keybinds 0 Fullscreen 1 Font 24/Smallcaps Map View 50x44 Zoom Use 0% Tactical HUD 1 Map Filters NONE Filters NONE Steam 1 RUN: 44ccc480-b436-44ec-8b33-6097a81868b0